bitfinex/quotes_ETHUSD_20240621
["timestamp","ask_amount","ask_price","bid_price","bid_amount"]
[1719011915077,0.49094434,3527.1,3526.9,2.3491216]
[1719011915278,4.34545143,3527.4,3527.0,3.13716]
[1719011915453,0.84091614,3527.3,3527.0,0.95022912]
[1719011915790,0.35,3527.3,3527.0,0.95022912]
[1719011916246,0.49090687,3527.2,3527.0,0.95022912]
[1719011916441,2.61807,3527.3,3527.0,3.21843912]
[1719011916681,0.49090491,3527.2,3527.0,3.13721]
[1719011916841,2.26807,3527.3,3527.1,0.08119769]
[1719011917047,0.49091046,3527.2,3527.1,0.08119769]
[1719011920095,0.49091229,3527.2,3527.1,0.08119769]
[1719011923170,0.49090826,3527.2,3527.1,0.08119769]
[1719011923720,0.49090828,3527.2,3527.1,0.08119769]
[1719011925389,5.02018828,3527.2,3527.1,0.08119769]
[1719011925703,5.02018828,3527.2,3526.8,5.08661]
[1719011925704,5.02018828,3527.2,3526.9,2.26822]
[1719011926001,4.52928,3527.2,3527.0,0.08096974]
[1719011926190,0.49093324,3527.1,3527.0,0.08096974]
[1719011926405,0.49093189,3527.1,3527.0,0.08096974]
[1719011929514,6.60895107,3527.2,3527.0,0.08096974]
[1719011929681,0.49093845,3527.1,3527.0,0.08096974]
[1719011932310,2.57060952,3527.1,3527.0,0.08096974]
[1719011932491,2.26808,3527.2,3526.8,2.81834]
[1719011932671,2.57139787,3527.1,3527.0,0.08098998]
[1719011933001,2.57139053,3527.1,3527.0,0.08098998]
[1719011933202,2.57139053,3527.1,3526.8,2.81834]
[1719011933504,2.08045157,3527.1,3526.9,0.08102141]
[1719011933685,0.49093797,3527.0,3526.9,0.08102141]
[1719011935066,8.00636567,3527.0,3526.9,0.08102141]
[1719011935394,6.60014567,3527.0,3526.0,3.1378]
[1719011935563,6.60014567,3527.0,3526.1,0.08059649]
[1719011935564,2.26854,3526.5,3526.1,0.08059649]
[1719011935763,2.57233185,3526.4,3526.1,0.08059649]
[1719011936093,0.49103243,3526.3,3526.1,0.08059649]
[1719011936294,2.2612,3526.3,3526.1,0.08059649]
[1719011936508,0.4910322,3526.2,3526.1,0.08059649]
[1719011936708,0.4910322,3526.2,3526.1,0.63059649]
[1719011937632,2.7597622,3526.2,3526.1,0.08059649]
[1719011937919,2.7597622,3526.2,3525.9,0.869]
[1719011938080,2.26873,3526.2,3526.1,0.08068899]
[1719011938278,2.26873,3526.2,3526.0,0.08072043]
[1719011938506,2.26873,3526.2,3526.1,0.08068899]
[1719011938708,2.26873,3526.2,3525.9,0.869]
[1719011938909,2.75977679,3526.2,3526.1,0.08068899]
[1719011939090,2.75977589,3526.2,3526.0,0.08072043]
[1719011939290,2.26873,3526.2,3526.1,0.08068899]
[1719011939610,2.2671444,3526.2,3525.9,0.869]
[1719011939804,2.2671444,3526.2,3526.0,0.08072043]
[1719011940581,2.2671444,3526.2,3526.1,0.869]
[1719011940776,2.2671444,3526.2,3526.1,0.94968899]
[1719011941389,2.07998932,3526.4,3526.2,2.26867]
[1719011941717,4.34855516,3526.5,3526.3,0.9496261]
[1719011941896,4.34855516,3526.5,3526.4,0.869]
[1719011942083,2.75955954,3526.5,3526.4,0.869]
[1719011942415,2.75955954,3526.5,3526.4,0.94959466]
[1719011942624,0.49101954,3526.5,3526.4,0.94959466]
[1719011943688,0.49101954,3526.5,3526.4,3.21819466]
[1719011944013,4.34826044,3526.8,3526.4,5.49749466]
[1719011944222,4.69857861,3526.8,3526.7,0.869]
[1719011944515,8.18955403,3526.8,3526.7,0.94965359]
[1719011944723,5.18955403,3526.8,3526.7,0.94965359]
[1719011944882,8.18955403,3526.8,3526.7,0.94965359]
[1719011945086,2.92120403,3526.8,3526.7,0.94965359]
[1719011945291,0.35,3526.8,3526.7,5.48645359]
[1719011945495,4.34832861,3527.2,3526.9,2.26826]
[1719011945716,0.35,3527.2,3527.0,0.869]
[1719011946213,2.61809,3527.2,3527.1,0.08045846]
[1719011946396,3.10900825,3527.2,3527.1,0.08045846]
[1719011946598,5.18948804,3527.2,3527.1,0.08045846]
[1719011946992,3.10900825,3527.2,3527.1,0.08045846]
[1719011947209,2.61809,3527.2,3527.1,0.08045846]
[1719011947399,3.10900808,3527.2,3527.1,0.08045846]
[1719011947799,0.84091808,3527.2,3527.1,0.08045846]
[1719011948021,0.49091808,3527.2,3527.1,0.08045846]
[1719011950432,2.77954075,3527.2,3527.1,0.08045846]
[1719011950612,0.69891808,3527.2,3527.1,0.08045846]
[1719011950920,0.35,3527.2,3527.1,0.08045846]
[1719011952786,0.322,3527.2,3527.1,0.08045846]
[1719011954219,4.67070248,3527.2,3527.1,0.08045846]
[1719011954524,4.67070248,3527.2,3526.9,3.13726]
[1719011954723,4.67070248,3527.2,3527.1,0.0803833]
[1719011955272,4.67070248,3527.2,3526.9,3.13726]
[1719011955422,2.40262248,3527.2,3527.1,0.0803833]
[1719011955602,2.40262248,3527.2,3526.9,3.13722]
[1719011955804,2.40262248,3527.2,3527.0,0.08041472]
[1719011956819,2.40247989,3527.2,3527.1,0.869]
[1719011957024,2.40247989,3527.2,3527.1,0.94934886]
[1719011957620,0.322,3527.2,3527.1,0.94934886]
[1719011958329,2.4023668,3527.2,3527.1,0.94934886]
[1719011959229,0.322,3527.2,3527.1,0.94934886]
[1719011959527,2.4023668,3527.2,3527.1,0.94934886]
[1719011959822,2.40237589,3527.2,3527.1,0.94934886]
[1719011960321,2.40237022,3527.2,3527.1,0.94934886]
[1719011960497,2.89329704,3527.2,3527.1,0.94934886]
[1719011960894,2.89329152,3527.2,3527.1,0.94934886]
[1719011961625,0.8409213,3527.2,3527.1,0.94934886]
[1719011963028,0.84092135,3527.2,3527.1,0.94934886]
[1719011965037,0.84092135,3527.2,3527.1,3.21749886]
[1719011966029,0.35,3527.2,3527.1,0.94934886]
[1719011966204,0.84091173,3527.2,3527.1,0.94934886]
[1719011966405,0.35,3527.2,3527.1,0.94934886]
[1719011966736,0.84091173,3527.2,3527.1,0.94934886]
[1719011968134,0.84091173,3527.2,3527.1,3.21749886]
[1719011968296,0.84091173,3527.2,3527.1,7.83104886]
[1719011968505,2.08052019,3527.6,3527.4,2.26795]
[1719011968828,0.49086543,3527.5,3527.4,2.26795]
[1719011969032,0.49086543,3527.5,3527.4,3.13695]
[1719011969236,0.49085581,3527.5,3527.4,3.13695]
[1719011969625,0.49085547,3527.5,3527.4,5.4049]
[1719011970023,2.08076002,3527.7,3527.4,5.4049]
[1719011970024,2.08076002,3527.7,3527.6,2.26783]
[1719011970337,0.84084745,3527.7,3527.6,3.13683]
[1719011972332,0.84085388,3527.7,3527.6,3.13683]
[1719011972502,0.84085388,3527.7,3527.4,2.26795]
[1719011972708,2.95655388,3527.6,3527.1,2.26815]
[1719011972929,2.75875388,3527.5,3527.2,0.869]
[1719011973125,0.49085388,3527.4,3527.2,3.13708]
[1719011974334,0.49085388,3527.4,3527.3,0.08027508]
[1719011975035,0.49085388,3527.5,3527.3,0.08027508]
[1719011975242,0.49085388,3527.4,3527.3,0.08027508]
[1719011975437,0.49087111,3527.4,3527.3,0.08027508]
[1719011978438,4.73354,3527.6,3527.3,0.08027508]
[1719011978608,0.49087532,3527.4,3527.3,0.08027508]
[1719011978809,5.65489921,3527.6,3527.3,0.08027508]
[1719011979106,0.49088116,3527.4,3527.3,0.08027508]
[1719011980037,0.49088116,3527.4,3527.3,0.94927508]
[1719011981452,4.73354,3527.6,3527.3,0.94927508]
[1719011981756,0.8408816,3527.5,3527.3,0.94927508]
[1719011981913,0.4908816,3527.4,3527.3,0.94927508]
[1719011983641,0.4908816,3527.4,3527.3,3.21729508]
[1719011984650,4.348735,3527.6,3527.3,3.21729508]
[1719011984949,0.84087656,3527.5,3527.3,3.13702]
[1719011985109,0.49087656,3527.4,3527.3,3.13702]
[1719011987733,2.26784,3527.6,3527.3,3.13702]
[1719011987943,2.92302148,3527.5,3527.3,3.13702]
[1719011988113,0.35,3527.5,3527.3,3.13702]
[1719011988313,0.49087805,3527.4,3527.3,3.13702]
[1719011988814,0.49087539,3527.4,3527.3,3.13702]
[1719011989209,2.57356025,3527.4,3527.3,3.13702]
[1719011989444,2.57356025,3527.4,3527.3,3.21727775]
[1719011990934,2.26784,3527.6,3527.3,3.21727775]
[1719011991137,2.08355973,3527.4,3527.3,3.21727775]
[1719011991329,2.57443791,3527.4,3527.3,3.21727775]
[1719011994029,0.49087818,3527.4,3527.3,3.21727775]
[1719011994233,2.57483457,3527.4,3527.3,3.21727775]
[1719011997230,2.08396412,3527.4,3527.3,3.21727775]
[1719011997561,0.49087341,3527.4,3527.3,3.21727775]
[1719011997762,2.57485812,3527.4,3527.3,3.21727775]
[1719011998333,2.57486015,3527.4,3527.3,3.21727775]
[1719011999161,0.49087544,3527.4,3527.3,0.08025775]
[1719011999463,0.49087544,3527.4,3527.3,0.94925775]
[1719012000370,2.57468456,3527.4,3527.3,0.94925775]
[1719012000534,0.49087872,3527.4,3527.3,0.94925775]
[1719012002644,2.26794,3527.5,3527.3,0.94925775]
[1719012002848,0.49087969,3527.4,3527.3,0.94925775]
[1719012005768,2.26794,3527.5,3527.3,0.94925775]
[1719012005972,0.49087968,3527.4,3527.3,0.94925775]
[1719012006170,2.26794,3527.5,3527.3,0.94925775]
[1719012006466,0.49087968,3527.4,3527.3,0.94925775]
[1719012008951,0.49088166,3527.4,3527.3,0.94925775]
[1719012009994,0.49088166,3527.4,3527.3,0.92125775]
[1719012010285,0.49088166,3527.4,3527.3,0.94833888]
[1719012010723,0.49088166,3527.4,3527.3,0.8568547]
[1719012012020,0.4908818,3527.4,3527.3,0.8568547]
[1719012012198,3.6667271,3527.4,3527.3,0.07759695]
[1719012012491,2.26806,3527.3,3526.9,2.26827]
[1719012012695,2.08551211,3527.0,3526.9,3.13727]
[1719012012884,2.57639391,3527.0,3526.9,3.13727]
[1719012013473,2.57630698,3527.0,3526.9,3.13727]
[1719012014088,0.4908818,3527.0,3526.9,3.13727]
[1719012014309,0.4908818,3527.1,3526.9,0.869]
[1719012014489,2.5762329,3527.0,3526.9,0.869]
[1719012014972,3.29632674,3527.2,3526.9,0.869]
[1719012015177,0.4909348,3527.1,3526.9,0.869]
[1719012015399,3.29632674,3527.2,3526.9,0.869]
[1719012015602,0.49093875,3527.0,3526.9,0.869]
[1719012015809,2.08542639,3527.0,3526.9,3.13728]
[1719012015986,0.49093875,3527.0,3526.9,3.13728]
[1719012016307,2.57644892,3527.0,3526.9,3.13728]
[1719012017478,0.49093875,3527.0,3526.9,3.13728]
[1719012017682,2.57644892,3527.0,3526.9,2.34604602]
[1719012017878,2.57644892,3527.0,3526.9,3.21504602]
[1719012018091,2.26809,3527.2,3526.9,3.21504602]
[1719012018410,2.08548459,3527.0,3526.9,3.21504602]
[1719012018710,2.57641703,3527.0,3526.9,3.21504602]
[1719012021424,2.57596845,3527.0,3526.9,3.21504602]
[1719012023504,0.49092649,3527.0,3526.9,0.07776602]
[1719012023697,0.49092649,3527.0,3526.9,0.94676602]
[1719012024294,2.26815,3527.1,3526.9,0.94676602]
[1719012024624,2.75915022,3527.0,3526.9,0.94676602]
[1719012024811,2.75915022,3527.0,3526.9,0.869]
[1719012024812,2.26821,3527.0,3526.9,0.869]
[1719012025011,2.7591621,3527.0,3526.9,0.94681517]
[1719012025525,11.12689281,3527.0,3526.9,0.07781517]
[1719012025721,2.26853,3526.5,3526.4,7.44]
[1719012025893,4.84413369,3526.5,3526.4,7.51797235]
[1719012026490,2.75948853,3526.5,3526.4,7.51797235]
[1719012026725,4.84413369,3526.5,3526.4,7.51797235]
[1719012027028,4.84351251,3526.5,3526.4,7.51797235]
[1719012027528,4.35255398,3526.5,3526.4,7.51797235]
[1719012027725,2.75954548,3526.5,3526.4,7.51797235]
[1719012028698,2.75954548,3526.5,3526.4,0.07797235]
[1719012028899,2.75954548,3526.5,3526.3,0.869]
[1719012029126,2.26853,3526.5,3526.4,0.07797235]
[1719012029296,2.75954837,3526.5,3526.4,0.07797235]
[1719012029496,2.75954837,3526.5,3526.3,0.869]
[1719012029717,2.26853,3526.5,3526.3,0.869]
[1719012030026,2.26853,3526.5,3526.4,0.07797235]
[1719012030226,2.75954926,3526.5,3526.3,0.869]
[1719012030448,2.26853,3526.5,3526.4,0.07797235]
[1719012030654,2.75955186,3526.5,3526.4,0.07797235]
[1719012030823,2.75955186,3526.5,3526.3,0.869]
[1719012031149,2.26853,3526.5,3526.4,0.07797235]
[1719012031352,2.75954954,3526.5,3526.4,0.07797235]
[1719012031533,2.75954954,3526.5,3526.3,0.869]
[1719012031845,2.26853,3526.5,3526.4,0.11385382]
[1719012032015,2.75955097,3526.5,3526.4,0.11385382]
[1719012032220,2.75955097,3526.5,3526.3,0.869]
[1719012032421,2.26853,3526.5,3526.4,0.11385382]
[1719012032753,2.7595458,3526.5,3526.3,0.869]
[1719012032931,2.26853,3526.5,3526.4,0.11385382]
[1719012033135,2.2686,3526.4,3526.3,0.869]
[1719012033350,2.2686,3526.4,3526.3,0.98288628]
[1719012033855,4.5372,3526.4,3526.3,0.11388628]
[1719012034173,2.26873,3526.2,3526.1,0.869]
[1719012035416,2.26873,3526.2,3525.8,4.56308]
[1719012035623,2.26879,3526.1,3525.9,0.55]
[1719012035824,2.26879,3526.1,3526.0,0.869]
[1719012039937,2.26873,3526.2,3526.0,0.869]
[1719012040150,2.26873,3526.2,3525.9,0.55]
[1719012040151,2.26873,3526.2,3526.1,0.869]
[1719012040727,4.57973,3526.2,3526.1,0.869]
[1719012041254,2.26873,3526.2,3526.1,0.869]
[1719012042260,2.26882,3526.1,3525.9,0.55]
[1719012042457,2.26882,3526.1,3526.0,0.869]
[1719012044860,2.26887,3526.0,3525.5,2.26918]
[1719012045066,2.26898,3525.9,3525.5,2.26918]
[1719012045363,2.26898,3525.9,3525.8,0.869]
[1719012047964,2.26892,3525.9,3525.8,0.869]
[1719012049356,2.26892,3525.9,3525.8,0.98321633]
[1719012049742,2.26892,3525.9,3525.8,0.11421633]
[1719012049940,2.26898,3525.8,3525.7,0.869]
[1719012050163,4.53796,3525.8,3525.7,0.869]
[1719012050373,2.26898,3525.8,3525.7,0.9832488]
[1719012055141,2.26898,3525.8,3525.7,0.1142488]
[1719012055377,2.26898,3525.8,3525.7,0.869]
[1719012055582,2.76007866,3525.8,3525.7,0.9832488]
[1719012056385,0.49109866,3525.8,3525.7,0.9832488]
[1719012056693,2.76007866,3525.8,3525.7,0.9832488]
[1719012057988,3.49054853,3525.8,3525.7,0.1142488]
[1719012058167,3.49054853,3525.8,3525.7,0.869]
[1719012058570,2.99944987,3525.8,3525.7,0.9832488]
[1719012058753,3.49054754,3525.8,3525.7,0.9832488]
[1719012059982,2.76007767,3525.8,3525.7,0.9832488]
[1719012060289,0.49109767,3525.8,3525.7,3.2522988]
[1719012061081,2.2688,3526.1,3525.8,2.26896]
[1719012061468,0.49108695,3526.0,3525.9,0.11444994]
[1719012061663,0.49108695,3526.0,3525.8,2.26896]
[1719012061882,2.2688,3526.1,3525.9,0.11444994]
[1719012062194,2.75993692,3526.0,3525.9,0.11444994]
[1719012062388,2.26893,3525.9,3525.8,0.869]
[1719012062594,0.49108692,3525.9,3525.8,0.869]
[1719012062794,0.49108692,3526.0,3525.8,0.869]
[1719012063290,2.75999692,3526.0,3525.8,0.869]
[1719012063474,2.76000692,3525.9,3525.6,3.13811]
[1719012063671,0.49108692,3525.8,3525.6,3.13811]
[1719012064058,0.49110168,3525.7,3525.6,3.13811]
[1719012064430,0.49110161,3525.7,3525.6,0.869]
[1719012065304,2.26002168,3525.9,3525.6,0.869]
[1719012065798,2.26891,3526.0,3525.6,3.13806]
[1719012065964,2.26893,3525.9,3525.6,3.13806]
[1719012068412,2.26899,3525.8,3525.6,0.869]
[1719012069696,2.26894,3525.9,3525.6,3.13811]
[1719012070330,2.26899,3525.8,3525.6,0.869]
[1719012070796,6.61920025,3526.0,3525.6,3.13811]
[1719012071305,2.26893,3525.9,3525.6,3.13811]
[1719012075228,2.26901,3525.8,3525.6,0.869]
[1719012075404,2.26901,3525.8,3525.3,2.2693]
[1719012075405,4.35127037,3525.8,3525.3,2.2693]
[1719012075606,2.2691,3525.7,3525.4,0.869]
[1719012076003,4.35131037,3525.7,3525.1,2.26938]
[1719012076318,2.26919,3525.5,3525.2,3.68835]
[1719012076504,2.26913,3525.6,3525.2,3.68835]
[1719012076704,4.35224337,3525.6,3525.2,3.68835]
[1719012077632,4.35224337,3525.6,3525.4,0.869]
[1719012078431,2.26913,3525.6,3525.4,0.869]
[1719012078638,4.35272145,3525.6,3525.4,0.869]
[1719012079335,4.35272145,3525.6,3525.5,0.11455091]
[1719012079532,2.26913,3525.6,3525.5,0.11455091]
[1719012079736,4.35281291,3525.6,3525.5,0.11455091]
[1719012079937,2.26913,3525.6,3525.5,0.11455091]
[1719012080103,4.35282655,3525.6,3525.5,0.11455091]
[1719012082743,4.35266034,3525.6,3525.5,0.11455091]
[1719012083608,4.35265589,3525.6,3525.5,0.11455091]
[1719012085409,2.08352589,3525.6,3525.5,0.11455091]
[1719012085810,2.08354742,3525.6,3525.5,0.11455091]
[1719012087142,2.26911,3525.6,3525.4,0.869]
[1719012087347,4.35257444,3525.6,3525.5,0.11088198]
[1719012087643,2.26911,3525.6,3525.5,0.11088198]
[1719012088229,4.35273118,3525.6,3525.5,0.11088198]
[1719012088634,4.35223872,3525.6,3525.5,0.11088198]
[1719012088845,2.26911,3525.6,3525.5,0.11088198]
[1719012089045,4.35194178,3525.6,3525.5,0.11088198]
[1719012089214,2.26911,3525.6,3525.5,0.11088198]
[1719012089415,4.3519234,3525.6,3525.5,0.11088198]
[1719012092953,2.0828134,3525.6,3525.5,0.11088198]
[1719012093446,2.0828134,3525.7,3525.6,2.26911]
[1719012093651,2.0828134,3525.8,3525.7,0.869]
[1719012094165,2.0828134,3525.8,3525.7,0.97981704]
[1719012095120,2.08328695,3525.8,3525.7,0.97981704]
[1719012097922,2.08328695,3525.8,3525.7,3.24886704]
[1719012098466,2.08339724,3525.8,3525.7,3.24886704]
[1719012098654,2.08319456,3525.8,3525.7,3.24886704]
[1719012099368,2.08320269,3525.8,3525.7,3.24886704]
[1719012099566,0.35,3525.9,3525.7,3.24886704]
[1719012099725,2.08324785,3525.8,3525.7,3.24886704]
[1719012099931,2.08324785,3525.8,3525.7,3.13805]
[1719012100133,2.08324785,3525.9,3525.8,2.26898]
[1719012100434,3.0,3526.1,3525.8,2.37974727]
[1719012100656,3.35,3526.1,3525.8,2.37974727]
[1719012100975,3.0,3526.1,3525.8,2.37974727]
[1719012101287,3.35,3526.1,3525.8,2.37974727]
[1719012102002,2.08325101,3525.9,3525.8,2.37974727]
[1719012102348,3.0,3526.1,3525.8,2.37974727]
[1719012102548,3.35,3526.1,3525.8,2.37974727]
[1719012102764,2.08323502,3525.9,3525.8,2.37974727]
[1719012104344,3.0,3526.1,3525.8,2.37974727]
[1719012104543,4.72956997,3526.2,3525.8,2.37974727]
[1719012104746,3.35,3526.1,3525.8,2.37974727]
[1719012105477,5.81082997,3526.1,3525.8,2.37974727]
[1719012106080,3.35,3526.1,3525.8,2.37974727]
[1719012106405,5.81082997,3526.1,3525.8,2.37974727]
[1719012107404,3.35,3526.1,3525.8,2.37974727]
[1719012107606,5.8108652,3526.1,3525.8,2.37974727]
[1719012107978,5.81089934,3526.1,3525.8,2.37974727]
[1719012109987,8.07969934,3526.1,3525.8,2.37974727]
[1719012110184,2.3854,3525.9,3525.8,0.11076727]
[1719012110386,4.72976934,3526.0,3525.8,0.11076727]
[1719012110582,2.61887,3526.0,3525.5,3.13817]
[1719012110776,2.81096482,3526.0,3525.9,0.10776501]
[1719012110981,5.81096482,3526.0,3525.7,2.26902]
[1719012111308,5.81096482,3526.0,3525.8,0.10779748]
[1719012113710,5.61887,3526.0,3525.8,0.10779748]
[1719012113909,8.07993821,3526.0,3525.8,0.10779748]
[1719012114509,8.07993821,3526.0,3525.6,2.2691]
[1719012114711,2.08347033,3525.7,3525.6,2.2691]
[1719012114907,2.08347033,3525.7,3525.6,2.8191]
[1719012115914,7.72993821,3526.0,3525.6,2.8191]
[1719012116117,2.08357656,3525.7,3525.6,2.8191]
[1719012116488,7.72993821,3526.0,3525.6,2.8191]
[1719012116688,8.07993821,3526.0,3525.6,2.8191]
[1719012117013,8.08015321,3526.0,3525.6,2.8191]
[1719012117215,5.26887,3526.0,3525.6,2.8191]
[1719012117516,2.0836741,3525.7,3525.6,2.8191]
[1719012117887,2.08368547,3525.7,3525.6,2.8191]
[1719012119592,7.73022346,3526.0,3525.6,2.8191]
[1719012119790,8.08022346,3526.0,3525.6,2.8191]
[1719012119992,5.61887,3526.0,3525.6,2.8191]
[1719012120208,2.08397166,3525.7,3525.6,2.8191]
[1719012122428,2.08385489,3525.7,3525.6,2.8191]
[1719012123926,1.58385489,3525.7,3525.6,2.8191]
[1719012124222,1.58385489,3525.7,3525.6,2.92696242]
[1719012125293,2.26892,3525.9,3525.6,2.92696242]
[1719012127730,7.73055534,3526.0,3525.6,2.92696242]
[1719012128029,8.08055534,3526.0,3525.7,2.26905]
[1719012128221,8.05255534,3526.0,3525.7,2.37692319]
[1719012128605,7.91060588,3526.0,3525.7,2.37692319]
[1719012129527,7.91060588,3526.0,3525.7,0.10787319]
[1719012129731,2.26893,3525.9,3525.7,0.10787319]
[1719012131855,5.29203718,3526.0,3525.7,0.10787319]
[1719012132052,2.43442026,3526.0,3525.9,0.869]
[1719012132337,2.08442026,3526.1,3526.0,4.5377]
[1719012132538,2.08442026,3526.2,3526.1,2.26879]
[1719012132712,2.08442026,3526.3,3526.0,0.97677578]
[1719012132911,2.08400188,3526.3,3526.2,0.869]
[1719012133112,7.73059718,3526.5,3526.2,0.97671085]
[1719012133306,5.81203718,3526.5,3526.2,0.97671085]
[1719012133506,2.08365094,3526.3,3526.2,0.97671085]
[1719012133712,2.08365094,3526.4,3526.2,3.24538085]
[1719012133905,2.08365094,3526.4,3526.3,4.53732]
[1719012134238,2.46203718,3526.7,3526.3,4.53732]
[1719012134239,2.08365094,3526.5,3526.4,2.2686]
[1719012134440,2.08365094,3526.5,3526.4,3.24509608]
[1719012134646,2.08319471,3526.6,3526.5,2.26852]
[1719012134809,2.08319471,3526.6,3526.5,0.10746362]
[1719012135012,2.26841,3526.7,3526.4,3.13759]
[1719012135216,2.08320001,3526.5,3526.4,3.13759]
[1719012135412,2.08320001,3526.6,3526.4,3.13759]
[1719012135631,2.08276406,3526.6,3526.4,3.13759]
[1719012135836,2.08276406,3526.5,3526.4,3.13759]
[1719012136454,2.08276406,3526.6,3526.4,3.13759]
[1719012136656,2.08276406,3526.6,3526.4,0.869]
[1719012136872,2.08276406,3526.6,3526.4,3.13758]
[1719012137425,2.08276406,3526.7,3526.4,3.13758]
[1719012137645,0.35,3526.7,3526.4,3.13758]
[1719012137835,2.43213697,3526.7,3526.4,3.13758]
[1719012138226,2.08213697,3526.6,3526.4,3.13758]
[1719012138656,3.0,3526.8,3526.4,3.13758]
[1719012138657,5.26835,3526.8,3526.4,3.13758]
[1719012138856,2.08183661,3526.6,3526.4,3.13758]
[1719012139239,2.08183661,3526.6,3526.5,0.10746362]
[1719012139534,2.08183661,3526.6,3526.4,3.13758]
[1719012139741,2.08183661,3526.6,3526.5,0.10746362]
[1719012140142,2.08183661,3526.6,3526.4,3.13758]
[1719012140447,2.08183661,3526.6,3526.5,0.10746362]
[1719012140761,2.08183661,3526.6,3526.4,3.13758]
[1719012140957,2.08140397,3526.6,3526.5,0.10746362]
[1719012141457,4.34980397,3526.7,3526.5,0.10746362]
[1719012141662,4.69980397,3526.7,3526.4,3.13758]
[1719012141860,4.69980397,3526.7,3526.6,0.10743116]
[1719012142156,4.69980397,3526.7,3526.4,3.13758]
[1719012142345,4.69980397,3526.7,3526.6,0.10743116]
[1719012142551,4.69980397,3526.7,3526.5,0.10746362]
[1719012142760,4.69980397,3526.7,3526.6,0.10743116]
[1719012142964,2.6184,3526.7,3526.6,0.10743116]
[1719012143165,2.6184,3526.7,3526.4,3.13758]
[1719012143372,2.08098032,3526.6,3526.4,3.13758]
[1719012143555,4.34938032,3526.7,3526.4,3.13758]
[1719012143755,4.69938032,3526.7,3526.4,3.13758]
[1719012143962,2.6184,3526.7,3526.4,3.13758]
[1719012144273,4.6992906,3526.7,3526.4,3.13758]
[1719012144766,4.69924662,3526.7,3526.4,3.13758]
[1719012145140,4.69916069,3526.7,3526.4,3.13758]
[1719012145873,4.69917069,3526.7,3526.4,3.13758]
[1719012147083,2.61841,3526.7,3526.4,3.13758]
[1719012147268,4.69886355,3526.7,3526.4,3.13758]
[1719012148675,2.26853,3526.5,3525.8,4.69296]
[1719012148877,2.26863,3526.4,3526.1,0.869]
[1719012149852,4.34908355,3526.4,3526.1,0.869]
[1719012150260,2.26863,3526.4,3526.1,0.869]
[1719012151185,4.621,3526.1,3525.5,8.309]
[1719012151348,4.621,3526.1,3525.6,2.2691]
[1719012151349,2.26887,3526.0,3525.6,2.2691]
[1719012152173,4.3492949,3526.0,3525.6,2.26905]
[1719012152357,2.26887,3526.0,3525.6,2.26905]
[1719012154374,2.26887,3526.0,3525.7,0.10768009]
[1719012154942,2.26894,3525.9,3525.7,0.10768009]
[1719012155181,2.269,3525.8,3525.6,0.869]
[1719012155342,5.24622627,3526.0,3525.6,0.869]
[1719012155547,2.26892,3525.9,3525.6,0.869]
[1719012156456,2.26893,3525.9,3525.6,0.869]
[1719012159856,4.34903424,3525.9,3525.6,0.869]
[1719012160058,2.26893,3525.9,3525.6,0.869]
[1719012169369,2.26893,3525.9,3525.7,0.10781269]
[1719012172476,6.61903081,3525.8,3525.7,0.10781269]
[1719012172783,6.61903081,3525.8,3525.2,4.69332]
[1719012172784,2.26906,3525.7,3525.3,0.869]
[1719012174091,2.26906,3525.7,3525.3,3.1383]
[1719012175875,2.26906,3525.7,3525.5,0.869]
[1719012184415,2.08149015,3525.9,3525.6,0.10789127]
[1719012184614,4.35041015,3525.9,3525.6,0.10789127]
[1719012184788,2.08149015,3526.0,3525.7,3.1337]
[1719012184989,2.08149015,3526.0,3525.9,0.869]
[1719012184990,0.35,3526.0,3525.9,0.869]
[1719012185319,1.27074568,3526.4,3525.9,0.869]
[1719012185320,5.08149015,3526.3,3525.9,0.869]
[1719012185516,2.43149015,3526.2,3525.9,0.869]
[1719012185686,4.70022015,3526.2,3525.9,0.869]
[1719012185887,4.70022015,3526.2,3526.0,0.10781616]
[1719012186515,2.26879,3526.1,3526.0,0.10781616]
[1719012186708,4.35028015,3526.1,3526.0,0.10781616]
[1719012187016,4.35103088,3526.1,3526.0,0.10781616]
[1719012187321,4.35108135,3526.1,3525.7,5.40274]
[1719012187691,4.35108135,3526.1,3525.8,0.10788109]
[1719012188018,5.26867,3526.3,3525.9,3.13791]
[1719012188019,7.35096135,3526.3,3525.9,3.13791]
[1719012188191,7.70096135,3526.3,3525.9,0.869]
[1719012188519,4.35102135,3526.2,3526.0,0.10781616]
[1719012188813,4.35108135,3526.1,3525.8,0.869]
[1719012189237,4.35115135,3526.0,3525.7,0.869]
[1719012189591,2.08229135,3525.9,3525.7,0.869]
[1719012189787,2.26886,3526.0,3525.7,0.869]
[1719012189993,2.08314291,3525.9,3525.7,0.869]
[1719012190402,4.35205912,3526.0,3525.7,0.869]
[1719012190585,2.08319912,3525.9,3525.7,0.869]
[1719012191613,2.08319912,3525.8,3525.7,0.869]
[1719012192119,2.08319912,3525.9,3525.7,0.869]
[1719012192420,2.08319912,3525.9,3525.5,2.26917]
[1719012192421,2.26905,3525.7,3525.5,0.869]
[1719012192618,4.35309367,3525.7,3525.5,0.869]
[1719012193034,4.35309463,3525.7,3525.5,0.869]
[1719012194519,2.08404463,3525.6,3525.5,0.869]
[1719012195825,2.26905,3525.7,3525.5,0.869]
[1719012197711,2.26905,3525.7,3525.4,0.869]
[1719012197916,2.08535681,3525.5,3525.4,0.869]
[1719012198797,2.26905,3525.7,3525.4,0.869]
[1719012199151,2.08533526,3525.5,3525.4,0.869]
[1719012199303,2.4114,3525.5,3524.9,2.26956]
[1719012199502,2.08518875,3525.3,3525.1,2.26943]
[1719012199695,2.0851767,3525.3,3525.2,3.24189125]
[1719012199900,2.26917,3525.6,3525.2,3.24189125]
[1719012200130,2.08519559,3525.4,3525.2,3.24189125]
[1719012200433,0.49114494,3525.3,3525.2,5.40307]
[1719012200807,0.49114494,3525.3,3525.2,5.51127855]
[1719012201128,4.73212729,3525.8,3525.3,2.26926]
[1719012201129,2.08519559,3525.5,3525.3,2.26926]
[1719012201329,2.08519559,3525.5,3525.4,1.52714359]
[1719012201507,2.57632993,3525.5,3525.4,1.52714359]
[1719012202753,2.57564052,3525.5,3525.4,1.52714359]
[1719012205618,2.26907,3525.7,3525.4,1.52714359]
[1719012205813,2.08418799,3525.5,3525.4,1.52714359]